bitfinex-derivatives/quotes_ETHF0:USTF0_20250224
["timestamp","ask_amount","ask_price","bid_price","bid_amount"]
[1740369593410,0.73544,2719.7,2719.5,6.81227]
[1740369593610,3.2078,2720.0,2719.6,0.73544]
[1740369593810,3.2078,2720.0,2719.5,6.0768]
[1740369594514,5.04619,2720.0,2719.5,6.0768]
[1740369594810,0.73541,2719.8,2719.6,0.73545]
[1740369595007,0.73554,2719.3,2719.2,0.00550954]
[1740369595211,3.94334,2719.3,2719.2,0.00550954]
[1740369597008,3.2078,2719.3,2719.2,0.74106954]
[1740369597210,3.94334,2719.3,2719.2,0.74106954]
[1740369597409,3.94334,2719.3,2719.2,0.00550954]
[1740369597811,3.2078,2719.3,2719.2,0.00550954]
[1740369598114,0.73585,2718.2,2717.3,1.84017]
[1740369598420,3.2078,2718.9,2718.2,0.73581]
[1740369598608,3.2078,2718.9,2718.0,3.0267]
[1740369598808,3.2078,2718.9,2718.2,6.0758]
[1740369599013,3.2078,2718.9,2718.3,2.868]
[1740369599216,0.73578,2718.5,2718.3,2.87350954]
[1740369599417,0.73576,2718.5,2718.3,2.87350954]
[1740369599608,0.00550954,2718.8,2718.3,2.87350954]
[1740369600121,0.74119954,2718.8,2718.5,0.73574]
[1740369600420,0.74119954,2718.8,2718.3,2.87350954]
[1740369600421,0.00550954,2718.8,2718.4,1.6432]
[1740369600721,0.00550954,2718.8,2718.6,3.2078]
[1740369601319,0.00550954,2718.8,2718.5,0.73573]
[1740369601617,0.00550954,2718.8,2718.4,1.6432]
[1740369601816,0.73571,2718.7,2718.4,0.73577]
[1740369602020,0.73571,2718.7,2718.3,0.00550954]
[1740369602021,1.5937,2718.7,2718.3,0.00550954]
[1740369602222,0.73578,2718.4,2718.3,0.00550954]
[1740369603314,0.73578,2718.4,2717.0,3.2078]
[1740369603315,1.83973,2718.1,2717.0,3.2078]
[1740369603522,3.2078,2717.6,2717.0,3.2078]
[1740369603716,3.2078,2717.6,2717.1,40.8]
[1740369604017,0.73611,2717.2,2717.1,40.8]
[1740369604220,3.2078,2717.3,2716.5,3.2078]
[1740369604420,3.2078,2717.0,2716.9,0.74171019]
[1740369604719,1.3933,2718.6,2717.7,0.73596]
[1740369605018,3.2078,2718.0,2717.1,44.0078]
[1740369605218,0.73616,2717.0,2716.9,0.00552019]
[1740369605419,3.2078,2717.0,2715.4,3.2078]
[1740369605634,1.84075,2716.5,2715.4,44.0078]
[1740369605928,3.2078,2716.2,2715.4,3.2078]
[1740369606125,3.2078,2715.9,2715.0,3.2078]
[1740369606325,1.4873,2716.4,2715.6,3.2078]
[1740369606528,3.2078,2716.9,2715.9,3.2078]
[1740369606729,0.73625,2716.7,2715.9,3.2078]
[1740369606927,3.94401,2716.9,2715.9,3.2078]
[1740369607135,1.4873,2717.0,2716.2,3.2078]
[1740369607429,1.4873,2717.0,2714.1,1.52752722]
[1740369607430,3.2078,2716.3,2715.6,3.2078]
[1740369607630,1.4873,2716.2,2715.6,0.73653]
[1740369607835,1.49282019,2716.2,2715.7,0.00552019]
[1740369608033,3.2078,2716.0,2715.7,0.00552019]
[1740369608231,3.2078,2716.0,2715.7,1.9e-07]
[1740369608232,0.73649,2715.8,2715.7,1.9e-07]
[1740369608836,8.18429,2715.8,2715.7,1.9e-07]
[1740369609136,3.2078,2716.0,2715.7,1.9e-07]
[1740369609841,3.94425,2716.0,2715.7,1.9e-07]
[1740369610139,0.73649,2715.8,2715.7,1.9e-07]
[1740369610337,9.2078,2716.0,2714.7,3.2078]
[1740369610539,3.2078,2714.9,2713.9,14.65781123]
[1740369610832,0.73659,2715.5,2715.0,0.73669]
[1740369611032,3.2078,2715.6,2715.0,3.94448]
[1740369611232,3.2078,2715.6,2714.8,3.2078]
[1740369611535,1.49282019,2716.2,2715.0,3.2078]
[1740369611536,4.70062019,2716.2,2715.0,3.2078]
[1740369611741,4.70062019,2716.2,2715.3,0.7366]
[1740369611940,0.73649,2715.8,2715.3,2.896]
[1740369612240,3.2078,2715.6,2715.0,2.896]
[1740369612538,3.2078,2715.6,2714.9,0.00552019]
[1740369612539,6.1088,2715.6,2714.9,0.00552019]
[1740369612735,0.7367,2715.0,2714.9,0.00552019]
[1740369613034,12.1248,2715.0,2713.8,6.1238]
[1740369613241,12.1248,2715.0,2713.8,3.2078]
[1740369613242,6.1248,2715.0,2713.8,3.2078]
[1740369613438,6.1248,2715.0,2713.9,40.8]
[1740369613643,3.2078,2715.0,2714.9,0.73673]
[1740369613934,3.2078,2716.1,2714.8,3.2078]
[1740369614138,3.2078,2715.8,2714.9,2.926]
[1740369614437,0.73662,2715.3,2715.2,0.00552019]
[1740369614733,0.00552019,2715.7,2715.2,0.00552019]
[1740369614935,0.00552019,2715.7,2715.5,3.94435]
[1740369615135,0.00552019,2715.7,2715.3,46.9398]
[1740369615440,0.00552019,2715.7,2715.4,0.73657]
[1740369615627,0.00552019,2715.7,2715.4,3.2078]
[1740369615827,0.00552019,2715.7,2715.6,0.73654]
[1740369616237,0.74204019,2715.7,2715.4,2.932]
[1740369616432,0.00552019,2715.7,2715.4,6.1398]
[1740369616633,0.00552019,2715.7,2715.4,3.2078]
[1740369616835,0.00552019,2715.7,2715.3,40.8]
[1740369617033,1.47842019,2715.7,2715.3,40.8]
[1740369617237,1.47842019,2715.7,2715.2,0.00552019]
[1740369617430,0.73662,2715.3,2715.2,0.00552019]
[1740369617639,0.73655,2715.6,2715.3,0.73662]
[1740369617836,0.73655,2715.6,2715.2,0.00552019]
[1740369617837,0.73659,2715.5,2715.2,0.74215019]
[1740369618036,0.73662,2715.3,2715.2,0.00552019]
[1740369620942,9.67662,2715.3,2715.2,1.9e-07]
[1740369621836,9.67021203,2715.3,2715.2,1.9e-07]
[1740369622242,6.098,2715.1,2713.6,6.1538]
[1740369622544,6.098,2715.1,2713.5,0.73711]
[1740369622545,3.2078,2714.1,2713.5,0.73711]
[1740369622741,5.05018,2714.1,2713.4,1.4182]
[1740369623049,0.73709,2713.6,2713.2,3.2078]
[1740369623249,3.2078,2713.8,2713.2,3.2078]
[1740369623445,3.2078,2714.2,2713.6,3.2078]
[1740369623753,0.00552019,2713.7,2713.6,0.73708]
[1740369624847,0.00552019,2713.7,2713.5,3.2078]
[1740369625046,0.73708,2713.6,2713.3,0.73715]
[1740369625245,0.73712,2713.5,2713.3,0.73715]
[1740369625446,0.73713,2713.5,2713.2,0.73719]
[1740369625641,3.2078,2713.3,2712.0,0.00311255]
[1740369625839,3.2078,2713.3,2710.8,1.798]
[1740369625840,3.2078,2712.6,2710.0,8.2702528]
[1740369626144,0.499,2712.5,2711.6,3.20784453]
[1740369626347,3.2078,2711.7,2711.0,3.20784453]
[1740369626543,3.2078,2711.1,2710.4,3.2078]
[1740369626741,3.2078,2711.8,2710.5,3.235]
[1740369626941,37.85497,2715.8,2711.4,3.20784453]
[1740369626942,3.2078,2711.9,2711.4,3.20784453]
[1740369627146,3.2078,2712.5,2712.1,0.73749]
[1740369627345,3.2078,2713.0,2712.8,3.20784453]
[1740369627539,0.73719,2713.2,2712.5,0.01292]
[1740369627738,0.73719,2713.2,2712.9,3.20784453]
[1740369627739,0.049,2713.1,2712.9,3.20784453]
[1740369627938,0.049,2713.1,2712.5,0.01292]
[1740369628145,0.00553077,2713.2,2713.0,3.20784453]
[1740369628345,3.2078,2714.2,2713.1,3.2078]
[1740369628647,3.2078,2714.8,2713.6,44.0078]
[1740369628948,0.18421,2714.1,2714.0,0.73697]
[1740369629252,3.49,2715.4,2713.7,4.8925]
[1740369629253,3.2078,2715.3,2713.9,3.2078]
[1740369629448,3.2078,2715.0,2714.2,3.2078]
[1740369629639,7.7e-07,2714.3,2714.2,0.73692]
[1740369629845,7.7e-07,2714.3,2714.2,7.43372]
[1740369630044,0.5183,2715.6,2714.2,17.42899948]
[1740369630240,0.5183,2715.6,2715.3,1.36577]
[1740369630445,0.5183,2715.6,2715.5,0.73657]
[1740369630651,3.2078,2716.3,2715.4,1.3835]
[1740369630849,3.2078,2716.7,2715.6,3.2078]
[1740369631048,3.2078,2717.1,2715.9,3.2078]
[1740369631250,0.00553077,2716.4,2716.3,3.2078]
[1740369631460,3.2078,2717.5,2716.3,23.6368]
[1740369631748,3.2078,2717.5,2716.4,3.2078]
[1740369632049,3.2078,2717.9,2716.9,3.2078]
[1740369632254,3.2078,2717.9,2717.1,3.2078]
[1740369632558,0.00552008,2717.7,2717.4,0.73605]
[1740369632754,0.00552008,2717.7,2717.3,0.73607]
[1740369632948,0.00552008,2717.7,2717.2,0.00552008]
[1740369632949,0.73608,2717.3,2717.2,0.00552008]
[1740369633147,3.2078,2717.3,2717.2,0.00552008]
[1740369633348,3.2078,2717.6,2717.2,0.00552008]
[1740369633649,3.2078,2717.3,2717.2,0.00552008]
[1740369634152,9.2078,2717.3,2716.1,3.2078]
[1740369634355,3.2078,2716.9,2716.4,0.73632]
[1740369634656,3.94391,2717.2,2716.3,3.2078]
[1740369634853,3.2078,2717.2,2716.5,0.73628]
[1740369635059,3.2078,2716.9,2716.0,8.07705251]
[1740369635249,3.2078,2716.9,2716.3,0.73633]
[1740369635651,3.2078,2717.2,2716.2,0.00552008]
[1740369635846,3.2078,2717.5,2717.0,0.73614]
[1740369636152,3.2078,2717.5,2716.8,3.2078]
[1740369636452,3.2078,2717.5,2717.2,0.73609]
[1740369637049,3.7027,2717.6,2717.3,0.73606]
[1740369637354,3.7027,2717.6,2717.4,0.73603]
[1740369637755,3.7027,2717.6,2717.5,0.73602]
[1740369639150,1.6607,2717.6,2717.5,0.73602]
[1740369639352,8e-08,2717.8,2717.3,5.04798]
[1740369639551,3.2078,2719.1,2717.7,3.2078]
[1740369639858,3.94341,2719.1,2718.5,0.73574]
[1740369640060,3.2078,2719.1,2718.1,3.2078]
[1740369640259,1.4711,2719.0,2718.5,0.73574]
[1740369640557,1.47662008,2719.0,2718.5,0.00552008]
[1740369640748,3.2078,2718.8,2718.5,0.00552008]
[1740369640952,3.2078,2718.8,2718.6,0.73571]
[1740369641145,1.47662008,2719.0,2718.5,0.00552008]
[1740369641556,1.47662008,2719.0,2718.9,0.73565]
[1740369642554,0.2216,2719.3,2719.2,0.73556]
[1740369643553,0.2216,2719.3,2719.1,3.2078]
[1740369643862,0.2216,2719.3,2719.2,0.73556]
[1740369644061,0.00552008,2719.5,2719.1,3.2078]
[1740369644360,0.00552008,2719.5,2719.4,3.2078]
[1740369644558,0.00552008,2719.5,2719.4,3.94331]
[1740369644859,0.00552008,2719.5,2718.9,8.08632409]
[1740369645051,0.00552008,2719.5,2719.4,0.73551]
[1740369645950,0.00552008,2719.5,2719.2,3.2078]
[1740369646156,0.00552008,2719.5,2719.4,0.73551]
[1740369647355,0.00552008,2719.5,2719.2,3.2078]
[1740369647554,3.21332008,2719.5,2718.9,3.2078]
[1740369647757,0.00552008,2719.5,2718.9,3.2078]
[1740369647959,0.00552008,2719.5,2719.3,0.73552]
[1740369648159,0.00552008,2719.5,2718.9,3.2078]
[1740369648160,0.00552008,2719.5,2719.4,0.73551]
[1740369649160,0.74102008,2719.5,2719.1,3.94337]
[1740369649464,0.00552008,2719.5,2718.8,3.2078]
[1740369649655,0.00552008,2719.5,2718.9,3.2078]
[1740369649960,0.00552008,2719.5,2719.4,0.73551]
[1740369651054,0.00552008,2719.5,2719.2,3.2078]
[1740369651257,0.00552008,2719.5,2719.4,0.73551]
[1740369651853,0.00552008,2719.5,2719.4,3.94331]
[1740369653863,3.2078,2719.7,2719.0,3.2078]
[1740369654057,3.2078,2720.0,2719.1,1.83899]
[1740369654272,3.2078,2720.0,2719.0,3.2078]
[1740369654273,0.9191,2719.9,2719.0,3.2078]
[1740369654456,0.9191,2719.9,2719.8,0.7354]
[1740369654767,0.73551,2719.4,2719.1,5.50118226]
[1740369654960,2.75759,2719.9,2719.0,3.2078]
[1740369654961,0.73549,2719.5,2719.2,0.73555]
[1740369655160,3.2078,2719.8,2719.0,3.2078]
[1740369655366,3.2078,2719.8,2719.2,0.73556]
[1740369655559,0.73547,2719.6,2719.3,0.73553]
[1740369655764,3.2078,2719.8,2719.0,3.2078]
[1740369655962,1.83878,2719.4,2718.4,3.94357]
[1740369656268,3.2078,2718.8,2717.5,23.6028]
[1740369656461,0.73587,2718.1,2717.7,0.73596]
[1740369656657,0.73585,2718.2,2717.8,0.73593]
[1740369656861,1.2863,2718.7,2718.4,0.73578]
[1740369657067,3.2078,2719.2,2718.0,3.2078]
[1740369657257,3.2078,2718.8,2718.4,3.2078]
[1740369657663,0.73575,2718.5,2718.4,3.2078]
[1740369658165,0.73578,2718.4,2718.3,0.00552008]
[1740369658762,0.73578,2718.4,2718.3,8e-08]
[1740369662167,3.2078,2718.5,2716.8,61.196]
[1740369662362,0.73617,2717.0,2716.8,61.9322]
[1740369662563,3.2078,2717.4,2716.8,61.196]
[1740369662763,3.2078,2717.4,2716.9,3.2078]
[1740369662963,0.73635,2716.3,2716.2,4.7268506]
[1740369663162,0.73635,2716.3,2715.9,20.4]
[1740369663163,3.2078,2716.4,2715.6,3.2078]
[1740369663373,3.68065,2717.2,2715.7,41.1688]
[1740369663374,0.73649,2715.8,2715.7,41.1688]
[1740369663664,3.2078,2716.1,2715.8,0.00552008]
[1740369663665,0.73647,2715.9,2715.8,0.00552008]
[1740369664171,0.73665,2715.2,2714.7,3.2078]
[1740369664378,0.73665,2715.2,2714.8,40.8]
[1740369664575,0.73665,2715.2,2714.7,3.2078]
[1740369664766,3.2078,2715.3,2713.9,3.2078]
[1740369664962,1.8419,2714.8,2714.0,40.8]
[1740369665167,3.2078,2714.2,2713.5,0.73708]
[1740369665371,3.2078,2713.9,2713.1,3.2078]
[1740369665572,0.73698,2714.0,2713.6,0.74260008]
[1740369665768,3.2078,2714.2,2713.6,0.00552008]
[1740369666070,3.2078,2713.9,2713.6,0.00552008]
[1740369666271,0.73704,2713.8,2713.6,0.00552008]
[1740369666473,3.2078,2714.1,2713.6,0.00552008]
[1740369666674,0.73692,2714.2,2713.6,0.74259008]
[1740369666971,0.73691,2714.3,2713.6,0.74259008]
[1740369667176,3.2078,2714.8,2714.2,3.2078]
[1740369667371,0.73689,2714.3,2714.2,3.2078]
[1740369667779,1.84231,2714.2,2713.1,3.2078]
[1740369668070,0.73719,2713.3,2712.9,3.2078]
[1740369668270,3.2078,2713.7,2712.9,3.2078]
[1740369668578,0.73725,2713.0,2712.9,3.2078]
[1740369668778,3.2078,2713.4,2712.5,3.2078]
[1740369669076,0.7373,2712.8,2712.7,0.00552008]
[1740369669471,54.7373,2712.8,2712.7,0.00552008]
[1740369669675,48.7373,2712.8,2712.7,0.00552008]
[1740369669870,48.0,2712.8,2712.7,0.00552008]
[1740369670076,59.03995624,2712.8,2712.7,0.00552008]
[1740369670272,81.11875624,2712.8,2712.7,0.00552008]
[1740369670669,0.00552008,2713.2,2712.7,0.00552008]
[1740369670875,11.03995624,2712.9,2712.8,0.7373]
[1740369671178,11.03995624,2712.9,2712.7,0.00552008]
[1740369671179,33.11875624,2712.8,2712.7,0.00552008]
[1740369671374,33.85605624,2712.8,2712.7,0.00552008]
[1740369671573,81.85605624,2712.8,2712.7,0.00552008]
[1740369671878,81.11875624,2712.8,2712.7,40.80552008]
[1740369672072,0.00552008,2713.2,2712.7,40.80552008]
[1740369672277,1.24620965,2723.8,2713.4,0.73711]
[1740369672278,0.73704,2713.8,2713.4,0.73711]
[1740369672476,11.03995624,2713.4,2713.3,0.73716]
[1740369672782,11.03995624,2713.4,2713.3,3.94496]
[1740369672983,11.03995624,2713.4,2713.3,44.74496]
[1740369673281,81.85589624,2713.4,2713.3,40.8]
[1740369673683,81.11875624,2713.4,2712.9,3.2078]
[1740369673888,33.11875624,2713.0,2712.9,3.2078]
[1740369674180,33.85600624,2713.0,2712.9,3.2078]
[1740369674375,81.11875624,2713.0,2712.9,3.2078]
[1740369674976,81.11875624,2713.0,2712.9,3.94507]
[1740369675376,0.00552008,2713.6,2712.9,6.5878]
[1740369675583,48.00552008,2713.6,2713.1,3.2078]
[1740369675778,0.73711,2713.5,2713.4,3.2078]
[1740369675978,13.23705624,2713.5,2713.4,3.2078]
[1740369676179,83.31585624,2713.5,2713.4,3.2078]
[1740369676379,11.03443616,2712.8,2712.1,3.2078]
[1740369676580,11.03443616,2712.3,2712.2,0.73746]
[1740369676788,33.11323616,2712.1,2711.5,20.433]
[1740369676979,11.02137616,2711.7,2711.5,20.433]
[1740369677182,11.02137616,2711.7,2711.6,0.73763]
[1740369677486,11.02137616,2711.7,2711.5,20.433]
[1740369677689,33.10017616,2711.6,2711.4,0.00553046]
[1740369677883,33.83782616,2711.5,2711.4,0.00553046]
[1740369678088,0.73775,2711.2,2710.9,3.2078]
[1740369678288,33.10017616,2711.0,2710.9,3.94562]
[1740369678580,11.02137616,2711.0,2710.9,3.94562]
[1740369678785,0.73767,2711.5,2711.0,0.73779]
[1740369678986,11.02137616,2711.0,2710.9,3.2078]
[1740369679185,11.02137616,2711.0,2710.9,3.94562]
[1740369679585,1.475,2711.8,2710.9,3.2078]
[1740369679781,11.02137616,2711.6,2711.2,3.2078]
[1740369679983,11.02137616,2711.6,2711.1,3.2078]
[1740369680189,11.02137616,2711.6,2711.5,0.73765]
[1740369680385,11.02137616,2711.6,2711.3,40.8]
[1740369680386,44.7922,2711.6,2711.3,40.8]
[1740369680585,33.10017616,2711.4,2711.0,0.73776]
[1740369680782,22.0788,2711.1,2710.8,3.2078]
[1740369680989,33.10017616,2710.9,2710.8,44.0078]
[1740369681286,33.10017616,2710.9,2710.1,3.2078]
[1740369681481,33.83801616,2710.8,2710.1,3.2078]
[1740369681681,33.10017616,2710.8,2710.6,0.73788]
[1740369681882,78.63021616,2710.8,2710.5,3.2078]
[1740369682081,77.89237616,2710.8,2710.6,0.73789]
[1740369682282,77.89237616,2710.8,2710.1,3.2078]
[1740369682479,77.89237616,2710.8,2710.4,0.73793]
[1740369682683,77.89237616,2710.8,2710.1,3.2078]
[1740369682884,77.89237616,2710.8,2710.7,0.74340046]
[1740369683079,77.89237616,2710.8,2710.7,0.00553046]
[1740369683287,78.63021616,2710.8,2710.7,0.00553046]
[1740369683688,81.83801616,2710.8,2710.7,0.00553046]
[1740369684491,77.89237616,2710.8,2710.7,0.00553046]
[1740369684686,78.63021616,2710.8,2710.7,0.00553046]
[1740369684887,77.89237616,2710.8,2710.7,0.74340046]
[1740369685585,11.02137616,2710.8,2710.7,0.74340046]
[1740369685791,77.89237616,2710.8,2710.7,41.54340046]
[1740369686090,77.89237616,2710.8,2710.7,40.80553046]
[1740369686391,78.63021616,2710.8,2710.7,0.00553046]
[1740369686590,81.83801616,2710.8,2710.7,0.00553046]
[1740369686892,78.63021616,2710.8,2710.7,0.00553046]
[1740369689686,77.89237616,2710.8,2710.7,0.00553046]
[1740369690192,11.02137616,2710.8,2710.7,3.21333046]
[1740369690398,11.02137616,2710.8,2710.7,0.74340046]
[1740369690697,3.36,2711.6,2710.7,0.00553046]
[1740369690886,11.02137616,2710.9,2710.8,0.73784]
[1740369692101,11.02137616,2710.9,2710.7,3.21333046]
[1740369692288,33.10017616,2710.8,2710.7,0.00553046]
[1740369692800,77.89237616,2710.8,2710.7,0.00553046]
[1740369693399,78.63021616,2710.8,2710.7,0.00553046]
[1740369693991,78.63021616,2710.8,2710.5,0.73792]
[1740369693992,12.5518,2710.8,2709.5,3.2078]
[1740369694300,33.10017616,2709.6,2708.6,3.2078]
[1740369694496,11.02137616,2709.2,2709.1,0.73831]
[1740369694796,11.02137616,2709.7,2709.6,0.73817]
[1740369695103,11.02137616,2709.8,2709.7,0.73814]
[1740369695402,11.02137616,2709.7,2709.6,3.94597]
[1740369695700,10.25080616,2709.8,2709.7,0.73814]
[1740369695897,10.25080616,2709.9,2709.6,3.2078]
[1740369696106,4.4849,2710.7,2709.4,0.0037187]
[1740369696107,11.08012055,2709.8,2709.7,0.73814]
[1740369696301,11.08012055,2709.8,2709.7,44.74594]
[1740369696700,11.08012055,2709.8,2709.7,3.2078]
[1740369696895,77.95112009,2709.8,2709.4,0.0037187]
[1740369697094,32.32960616,2709.5,2709.4,0.7419487]
[1740369697402,10.25080616,2709.6,2709.4,3.2115187]
[1740369697599,22.90811439,2709.7,2709.5,3.353]
[1740369697600,0.82931439,2709.7,2709.5,3.353]
[1740369697794,3.2078,2711.2,2709.6,3.358]
[1740369697994,46.06929954,2710.7,2710.6,0.7379]
[1740369698202,46.06929954,2710.7,2710.1,5.05289]
[1740369698203,8.31420616,2710.4,2710.3,0.73798]
[1740369698996,1.2771,2710.7,2710.6,0.7379]
[1740369699198,1.2771,2710.7,2710.6,3.9457]
[1740369699799,1.2771,2710.7,2710.6,7.2977]
[1740369699994,3.2078,2711.6,2711.5,0.73765]
[1740369700200,8.31420616,2711.5,2711.2,3.2078]
[1740369700401,8.31420616,2711.5,2711.4,0.73768]
[1740369700904,0.1627,2712.2,2712.1,0.73749]
[1740369701100,0.1627,2712.2,2712.1,3.94529]
[1740369701300,8.47690616,2712.2,2712.1,3.94529]
[1740369701505,0.1627,2712.2,2712.1,3.94529]
[1740369702207,4.1291,2713.5,2712.1,3.2078]
[1740369702403,8.31420616,2712.8,2712.5,3.2078]
[1740369702708,8.31420616,2712.7,2712.6,0.73735]
[1740369703001,8.31420616,2712.8,2712.7,0.73733]
[1740369703201,8.31420616,2712.6,2712.2,6.5548]
[1740369703406,8.31420616,2712.7,2712.5,0.00553046]
[1740369703707,8.31420616,2712.7,2712.5,3.21333046]
[1740369704711,8.31420616,2712.6,2712.5,3.21333046]
[1740369705202,8.31420616,2712.6,2712.5,3.95071046]
[1740369705401,8.31420616,2712.6,2712.5,3.21333046]
[1740369705603,9.05155616,2712.6,2712.5,0.00553046]
[1740369706208,75.9225557,2712.6,2712.5,0.00553046]
[1740369706404,33.60080616,2712.6,2711.6,24.9316]
[1740369706610,8.31420616,2711.7,2711.6,24.9316]
[1740369706815,8.31420616,2711.7,2711.6,3.2078]
[1740369707008,78.39300524,2711.7,2710.5,3.2078]
[1740369707305,8.31420616,2710.9,2710.8,3.2078]
[1740369707500,67.60881908,2710.9,2710.8,3.2078]
[1740369707705,53.84422524,2710.9,2710.8,3.2078]
[1740369707905,53.10640524,2710.9,2710.8,3.2078]
[1740369708102,0.00553046,2711.1,2711.0,0.73779]
[1740369708506,0.00553046,2711.1,2710.8,3.2078]
[1740369708703,0.00553046,2711.1,2711.0,0.73779]
[1740369709308,3.2078,2712.3,2711.0,4.71935099]
[1740369709509,8.31420616,2711.7,2711.6,0.73763]
[1740369710006,8.31420616,2711.7,2711.4,3.2078]
[1740369710306,8.31420616,2711.7,2711.6,0.73763]
[1740369710511,8.31420616,2711.7,2711.5,0.73764]
[1740369710712,8.31420616,2711.7,2711.5,3.2078]
[1740369711012,8.31420616,2711.7,2711.6,0.73763]
[1740369711311,8.31420616,2711.7,2711.5,3.2078]
[1740369711513,8.31420616,2711.7,2711.6,0.73763]
[1740369711907,0.00553046,2711.8,2711.7,0.7376]
[1740369712210,0.00553046,2711.8,2711.7,4.0426]
[1740369712609,0.73736,2712.6,2711.7,4.0426]
[1740369712803,8.31420616,2712.4,2712.0,3.2078]
[1740369713002,8.31420616,2712.5,2712.4,0.73741]
[1740369713200,8.31420616,2712.5,2712.3,2.47051]
[1740369713513,8.31420616,2712.5,2712.4,0.73741]
[1740369714336,0.00549876,2712.7,2712.6,0.73735]
[1740369714708,0.00549876,2712.7,2712.6,3.94515]
[1740369716114,0.74282876,2712.7,2712.6,3.2078]
[1740369716309,73.477774,2712.7,2712.2,3.303]
[1740369716514,0.73746,2712.2,2712.1,0.00553046]
[1740369716903,74.20973524,2712.2,2712.1,0.00553046]
[1740369717113,77.41753524,2712.2,2712.1,4.6e-07]
[1740369717315,1.84387,2711.9,2711.1,20.451]
[1740369717613,0.73772,2711.3,2711.1,20.451]
[1740369717810,6.60127616,2711.6,2711.2,3.2078]
[1740369718012,7.33887616,2711.7,2711.3,3.285]
[1740369718213,44.79219862,2711.9,2711.6,3.2078]
[1740369718214,6.60127616,2711.9,2711.6,3.2078]
[1740369718418,7.33882616,2711.9,2711.6,3.94541]
[1740369718618,6.60127616,2711.9,2711.6,3.2078]
[1740369718812,6.60127616,2711.9,2711.8,0.73757]
[1740369719010,6.60127616,2711.9,2711.8,3.283]
[1740369719312,6.60127616,2711.9,2711.8,4.02057]
[1740369719912,6.60127616,2711.9,2711.8,7.22837]
[1740369720108,0.00549876,2712.7,2711.8,6.4908]
[1740369720319,6.60127616,2712.4,2712.3,0.73744]
[1740369720618,44.79769738,2712.7,2712.6,0.73735]
[1740369720619,8.76e-06,2712.7,2712.6,0.73735]
[1740369720913,8.76e-06,2712.7,2712.6,6.89915]
[1740369721118,0.02043,2713.1,2713.0,0.73725]
[1740369721308,2.3322,2714.1,2713.8,0.73703]
[1740369721515,6.60127616,2713.6,2713.4,3.2078]
[1740369721715,6.60127616,2713.6,2713.5,3.269]
[1740369721915,5.54,2714.8,2714.0,0.73696]
[1740369722216,6.60127616,2714.3,2714.2,0.73692]
[1740369722613,0.00553046,2714.7,2714.2,4.85264296]
[1740369722807,0.00553046,2714.7,2714.6,3.94461]
[1740369723013,0.00553046,2714.7,2714.6,7.20961]
[1740369723214,0.00553046,2714.7,2714.6,48.00961]
[1740369723519,3.2078,2715.9,2714.6,52.14440647]
[1740369723712,6.60127616,2715.4,2715.3,3.94442]
[1740369723912,6.60127616,2715.6,2715.3,3.2078]
[1740369724225,28.68007616,2715.4,2715.0,3.2078]
[1740369724513,6.60127616,2715.3,2715.2,0.73665]
[1740369724816,0.9205,2715.7,2715.2,2.954]
[1740369725017,0.9205,2715.7,2715.6,3.94434]
[1740369725018,0.06149952,2715.7,2715.6,3.94434]
[1740369725216,9.52e-06,2715.7,2715.6,7.20934]
[1740369725416,9.52e-06,2715.7,2715.6,11.9026256]
[1740369726019,9.52e-06,2715.7,2715.6,52.7026256]
[1740369727308,9.52e-06,2715.7,2715.6,53.16544538]
[1740369727513,3.2078,2718.0,2715.7,3.2078]
[1740369727712,5.84042616,2717.0,2716.7,3.2078]
[1740369728023,5.84042616,2717.6,2716.8,8.02721582]
[1740369728221,4.4883,2718.4,2717.5,3.2078]
[1740369728418,5.84042616,2718.0,2717.9,0.73592]
[1740369728715,5.84042616,2718.0,2717.5,3.272]
[1740369728716,22.0788,2718.3,2718.2,0.73582]
[1740369728907,5.84042616,2718.2,2718.0,3.271]
[1740369729307,5.84042616,2718.2,2718.1,3.94366]
[1740369729519,44.79219862,2718.2,2718.1,3.2078]
[1740369729714,27.91922616,2718.2,2718.1,3.94366]
[1740369729915,5.84042616,2718.2,2718.1,3.2078]
[1740369730111,0.73592,2717.9,2717.8,0.00551968]
[1740369730312,5.84042616,2717.9,2717.8,0.74145968]
[1740369730519,73.44734478,2717.9,2717.8,0.00551968]
[1740369730711,72.71142478,2717.9,2717.2,3.2078]
[1740369730916,3.2078,2717.7,2716.9,3.2078]
[1740369731117,22.81496,2717.0,2716.9,3.2078]
[1740369731317,27.91922616,2717.0,2716.9,3.2078]
[1740369731514,5.84042616,2717.0,2716.9,3.94399]
[1740369731714,1.2383,2717.8,2716.9,3.2078]
[1740369732021,3.2078,2718.5,2717.2,3.2078]
[1740369732221,0.00548373,2717.6,2717.5,3.94382]
[1740369732716,0.00548373,2717.6,2717.5,11.66065902]
[1740369733223,3.73e-06,2717.6,2717.5,11.66065902]
[1740369733416,3.73e-06,2717.6,2717.5,8.70665902]
[1740369734118,1.83853,2719.8,2717.5,8.70665902]
[1740369734119,3.2078,2720.0,2718.6,1.83932]
[1740369734312,46.03049862,2719.7,2719.3,0.73554]
[1740369734512,5.84042616,2719.1,2718.8,3.2078]
[1740369734720,28.65487616,2718.9,2718.8,40.8]
[1740369734916,27.91922616,2718.9,2718.2,20.419]
[1740369735222,5.84042616,2718.5,2718.3,4.79086278]
[1740369735419,5.84042616,2718.7,2718.6,0.73573]
[1740369735619,22.0788,2718.7,2718.4,3.2078]
[1740369735919,3.2078,2719.9,2718.6,7.99866278]
[1740369736219,5.84042616,2719.4,2718.8,3.2078]
[1740369736411,22.81439,2719.1,2719.0,0.00551968]
[1740369736612,0.73559,2719.1,2719.0,0.00551968]
[1740369736837,72.71142478,2719.1,2718.4,3.2078]
[1740369737025,5.84042616,2718.6,2718.4,3.2078]
[1740369737221,5.84042616,2718.6,2718.5,0.73575]
[1740369737425,5.84042616,2718.6,2718.4,3.2078]
[1740369737917,22.0788,2718.6,2718.4,0.73576]
[1740369738117,27.91922616,2718.5,2718.3,3.32]
[1740369738320,5.84042616,2718.4,2718.3,4.05581]